bitfinex-derivatives/quotes_SOLF0:USTF0_20241226
["timestamp","ask_amount","ask_price","bid_price","bid_amount"]
[1735232424674,5.7662,190.57,190.52,2.6268]
[1735232425076,3.14,190.57,190.52,2.6268]
[1735232425273,3.14,190.57,190.45,3.1954]
[1735232426481,2.6265,190.55,190.5,2.6271]
[1735232426982,13.228068,190.61,190.47,13.228068]
[1735232427284,3.14,190.6,190.5,13.228068]
[1735232427482,1.5907,190.63,190.51,1.5403]
[1735232427683,3.14,190.62,190.53,13.228068]
[1735232428089,3.14,190.62,190.58,2.6259]
[1735232430083,2.6258,190.6,190.55,2.6263]
[1735232430286,3.14,190.62,190.52,13.228068]
[1735232430585,3.14,190.62,190.51,14.768368]
[1735232431483,3.14,190.62,190.53,2.6267]
[1735232431688,3.14,190.62,190.51,14.768368]
[1735232431892,14.23,190.62,190.51,14.768368]
[1735232432082,14.23,190.62,190.51,4.1672]
[1735232432493,13.228068,190.6,190.51,4.1672]
[1735232433289,2.6264,190.56,190.51,4.1672]
[1735232435694,5.7664,190.56,190.51,4.1672]
[1735232435994,4.19,190.55,190.51,4.1672]
[1735232436194,8.38,190.55,190.51,4.1672]
[1735232437996,11.0064,190.55,190.51,4.1672]
[1735232438391,11.0064,190.55,190.48,13.228068]
[1735232438392,8.38,190.55,190.49,2.6271]
[1735232438596,2.6266,190.54,190.48,13.228068]
[1735232438796,8.38,190.55,190.48,13.228068]
[1735232438999,8.38,190.55,190.49,2.6271]
[1735232440398,2.6267,190.53,190.49,2.6271]
[1735232440608,8.38,190.55,190.49,2.6271]
[1735232440802,8.38,190.55,190.48,2.6273]
[1735232441200,2.6269,190.52,190.48,2.6273]
[1735232441507,13.228068,190.54,190.46,4.2263]
[1735232441803,8.38,190.55,190.46,1.5988]
[1735232442104,2.6271,190.51,190.47,2.6275]
[1735232442500,2.6271,190.5,190.46,1.5988]
[1735232442706,2.6271,190.5,190.46,2.6276]
[1735232442907,3.14,190.52,190.43,13.228068]
[1735232443097,3.14,190.52,190.5,2.6271]
[1735232443305,3.14,190.52,190.46,13.228068]
[1735232444202,9.51,190.52,190.49,2.6271]
[1735232445508,12.1369,190.52,190.49,2.6271]
[1735232445709,3.83,190.51,190.47,2.6274]
[1735232445909,3.83,190.51,190.44,14.797868]
[1735232446408,2.6272,190.5,190.46,2.6276]
[1735232448108,2.6272,190.5,190.44,14.797868]
[1735232448311,3.83,190.51,190.44,14.797868]
[1735232448812,3.83,190.51,190.48,2.6274]
[1735232449704,6.457,190.51,190.48,2.6274]
[1735232450704,3.83,190.51,190.48,2.6274]
[1735232451309,8.38,190.5,190.48,2.6274]
[1735232452513,8.38,190.5,190.47,2.6275]
[1735232452713,8.38,190.5,190.44,14.797868]
[1735232455110,18.11,190.5,190.44,14.797868]
[1735232455510,18.11,190.5,190.48,2.6273]
[1735232457017,2.6273,190.49,190.45,2.6277]
[1735232457213,2.6273,190.49,190.41,14.852768]
[1735232458121,2.6274,190.48,190.41,14.852768]
[1735232458310,3.16,190.47,190.41,14.852768]
[1735232458513,3.16,190.47,190.41,1.6247]
[1735232458713,2.628,190.44,190.41,2.6283]
[1735232458919,3.16,190.47,190.41,2.6283]
[1735232459218,13.228068,190.46,190.38,7.1890131]
[1735232459409,13.228068,190.46,190.37,1.6225]
[1735232460009,2.628,190.44,190.38,2.6288]
[1735232460216,13.228068,190.46,190.38,2.6288]
[1735232460416,13.228068,190.46,190.36,135.37296109]
[1735232460620,2.6283,190.42,190.37,2.6289]
[1735232460819,3.16,190.41,190.37,2.6289]
[1735232461014,13.228068,190.4,190.31,7.1890131]
[1735232461210,13.228068,190.36,190.31,7.1890131]
[1735232461415,3.16,190.35,190.31,7.1890131]
[1735232462019,5.7892,190.35,190.31,7.1890131]
[1735232462216,5.7892,190.35,190.3,2.6299]
[1735232462719,3.14,190.34,190.26,13.228068]
[1735232462915,3.14,190.34,190.29,13.228068]
[1735232463822,3.14,190.34,190.33,2.6295]
[1735232464215,3.14,190.36,190.29,13.228068]
[1735232464413,2.6285,190.41,190.32,13.228068]
[1735232464612,3.14,190.4,190.33,1.5602]
[1735232464818,2.6285,190.41,190.33,1.5602]
[1735232465110,3.14,190.4,190.33,1.5602]
[1735232465519,2.6285,190.41,190.36,2.629]
[1735232465814,3.14,190.4,190.36,2.629]
[1735232467214,5.7685,190.4,190.36,2.629]
[1735232467823,2.6285,190.4,190.36,2.629]
[1735232468019,3.14,190.39,190.36,2.629]
[1735232468623,2.6285,190.4,190.36,2.629]
[1735232468814,3.14,190.39,190.36,2.629]
[1735232469325,11.88,190.39,190.36,2.629]
[1735232469528,3.58,190.38,190.36,2.629]
[1735232469921,3.14,190.37,190.36,2.629]
[1735232471415,4.2,190.37,190.36,2.629]
[1735232471616,0.8025,190.37,190.36,2.629]
[1735232471822,2.4975,190.39,190.35,13.228068]
[1735232472024,0.3984,190.39,190.38,9.398068]
[1735232472521,0.3984,190.39,190.38,12.026868]
[1735232473223,8.4,190.4,190.39,2.6286]
[1735232474119,4.6642,190.48,190.45,2.6278]
[1735232474520,13.3042,190.48,190.36,7.1890131]
[1735232474723,13.3042,190.48,190.43,2.628]
[1735232475026,13.3042,190.48,190.36,7.1890131]
[1735232475225,2.6277,190.46,190.42,2.6282]
[1735232476230,11.0275,190.47,190.42,2.6282]
[1735232476824,2.6277,190.46,190.42,2.6282]
[1735232477224,2.6277,190.46,190.35,16.368068]
[1735232477225,2.6277,190.46,190.43,2.6281]
[1735232477429,2.6279,190.45,190.35,16.368068]
[1735232477621,2.6279,190.45,190.32,20.4170811]
[1735232477622,13.228068,190.46,190.32,20.4170811]
[1735232477826,13.228068,190.43,190.38,2.6287]
[1735232478125,3.14,190.42,190.32,20.4170811]
[1735232478526,3.14,190.42,190.32,13.228068]
[1735232479031,3.14,190.42,190.39,2.6286]
[1735232480022,5.7683,190.42,190.35,2.6292]
[1735232480227,5.7683,190.42,190.32,13.228068]
[1735232480429,3.14,190.42,190.32,13.228068]
[1735232480625,4.7676,190.42,190.32,13.228068]
[1735232481226,2.6284,190.41,190.32,13.228068]
[1735232481831,2.6284,190.41,190.36,2.6289]
[1735232482332,2.6287,190.39,190.29,13.228068]
[1735232483529,2.6287,190.39,190.34,2.6292]
[1735232483733,2.6287,190.39,190.29,13.228068]
[1735232484137,2.6287,190.39,190.35,2.6292]
[1735232486733,3.14,190.4,190.32,13.228068]
[1735232486931,14.915268,190.46,190.32,13.228068]
[1735232487232,3.14,190.43,190.35,13.228068]
[1735232488035,3.14,190.43,190.41,2.6283]
[1735232488433,11.25,190.43,190.41,2.6283]
[1735232488832,11.25,190.43,190.32,20.4170811]
[1735232489032,24.478068,190.43,190.32,20.4170811]
[1735232489233,24.478068,190.43,190.32,7.1890131]
[1735232489429,24.478068,190.43,190.31,7.1890131]
[1735232489636,24.478068,190.43,190.37,2.6289]
[1735232489837,11.25,190.43,190.32,13.228068]
[1735232490234,24.478068,190.43,190.32,13.228068]
[1735232490628,24.478068,190.43,190.35,2.6291]
[1735232490933,13.228068,190.4,190.29,28.75605241]
[1735232491133,3.3188,190.39,190.29,28.75605241]
[1735232491434,13.228068,190.37,190.29,28.75605241]
[1735232491635,13.228068,190.37,190.26,13.228068]
[1735232491834,2.6292,190.36,190.32,2.6296]
[1735232494741,13.228068,190.37,190.26,13.228068]
[1735232494940,3.14,190.38,190.29,13.228068]
[1735232495238,3.3188,190.39,190.29,13.228068]
[1735232495440,3.14,190.39,190.38,2.6288]
[1735232495636,11.25,190.43,190.32,13.228068]
[1735232496029,8.11,190.43,190.42,2.6282]
[1735232496535,8.11,190.43,190.38,13.228068]
[1735232496735,8.11,190.43,190.41,2.6282]
[1735232497140,8.11,190.43,190.42,2.6282]
[1735232498639,16.51,190.43,190.42,2.6282]
[1735232499135,16.51,190.43,190.35,13.228068]
[1735232500237,16.51,190.43,190.32,20.4170811]
[1735232500445,2.6285,190.4,190.32,20.4170811]
[1735232500742,3.14,190.39,190.32,7.1890131]
[1735232501042,2.6289,190.38,190.33,2.6295]
[1735232501242,3.14,190.39,190.32,7.1890131]
[1735232501639,12.4,190.39,190.29,13.228068]
[1735232502437,2.6291,190.36,190.29,13.228068]
[1735232503143,2.6291,190.36,190.31,2.6297]
[1735232503844,11.2491,190.36,190.31,2.6297]
[1735232505446,8.62,190.36,190.31,2.6297]
[1735232505647,2.6292,190.35,190.31,2.6297]
[1735232505947,3.14,190.34,190.31,2.6297]
[1735232506846,3.14,190.34,190.21,41.98412041]
[1735232507547,3.14,190.34,190.21,13.228068]
[1735232508247,2.6299,190.31,190.26,2.6303]
[1735232508846,2.6299,190.31,190.27,2.6302]
[1735232509447,2.6299,190.31,190.26,2.6303]
[1735232509648,2.6299,190.31,190.21,13.228068]
[1735232511547,2.6299,190.31,190.27,2.6302]
[1735232512847,2.6301,190.29,190.24,2.6306]
[1735232513048,5.7701,190.29,190.24,2.6306]
[1735232513547,3.14,190.28,190.24,2.6306]
[1735232513847,5.7703,190.28,190.24,2.6306]
[1735232515141,14.810968,190.35,190.21,13.228068]
[1735232515346,3.14,190.31,190.24,13.228068]
[1735232515755,3.14,190.31,190.28,2.63]
[1735232517149,2.6296,190.33,190.28,2.63]
[1735232517349,3.14,190.32,190.28,2.63]
[1735232517755,3.14,190.32,190.26,2.6303]
[1735232518242,2.63,190.3,190.27,2.6303]
[1735232518948,11.79,190.3,190.26,2.6304]
[1735232519759,2.6301,190.29,190.25,2.6305]
[1735232520362,9.16,190.3,190.21,13.228068]
[1735232520660,22.388068,190.3,190.18,13.228068]
[1735232520959,3.2807,190.29,190.18,13.228068]
[1735232521160,2.6303,190.27,190.21,2.6311]
[1735232521352,3.14,190.26,190.17,1.5969]
[1735232521552,3.14,190.26,190.16,109.94564586]
[1735232521553,3.14,190.26,190.16,106.70914586]
[1735232521751,3.14,190.26,190.16,119.93721386]
[1735232522153,5.7704,190.26,190.16,119.93721386]
[1735232522358,6.4207,190.29,190.19,13.228068]
[1735232522560,3.14,190.29,190.28,2.6302]
[1735232522753,9.16,190.3,190.22,13.228068]
[1735232522754,5.7698,190.28,190.22,13.228068]
[1735232523269,5.7698,190.28,190.27,2.6303]
[1735232523964,12.1098,190.28,190.27,2.6303]
[1735232525760,12.1098,190.28,190.2,1.5204]
[1735232526157,3.14,190.27,190.2,1.5204]
[1735232526461,3.14,190.27,190.24,2.6307]
[1735232528266,5.7703,190.27,190.24,2.6307]
[1735232528465,5.7703,190.27,190.23,2.6308]
[1735232528865,2.6305,190.26,190.23,2.6308]
[1735232529869,3.14,190.27,190.23,2.6308]
[1735232530071,5.7703,190.27,190.23,2.6308]
[1735232531064,12.1098,190.28,190.18,16.368068]
[1735232531268,12.1098,190.28,190.21,13.228068]
[1735232531673,14.74,190.28,190.21,13.228068]
[1735232532468,12.1098,190.28,190.21,13.228068]
[1735232532869,12.1098,190.28,190.24,13.228068]
[1735232533060,19.2098,190.28,190.24,13.228068]
[1735232533263,19.2098,190.28,190.27,2.6303]
[1735232534465,16.5777,190.28,190.27,2.6303]
[1735232534660,16.5777,190.28,190.27,15.858368]
[1735232534865,3.14,190.39,190.27,13.228068]
[1735232535069,3.14,190.39,190.31,13.228068]
[1735232535773,3.14,190.39,190.28,3.14]
[1735232535774,1.26,190.38,190.28,20.74439586]
[1735232535970,4.2,190.37,190.28,20.74439586]
[1735232536272,4.2,190.37,190.28,17.60439586]
[1735232536673,4.2,190.37,190.28,13.228068]
[1735232536872,2.6289,190.36,190.31,2.6294]
[1735232537372,2.6289,190.36,190.28,13.228068]
[1735232538572,6.8288,190.37,190.28,13.228068]
[1735232538874,4.2,190.37,190.25,13.228068]
[1735232539068,7.4041,190.37,190.25,13.228068]
[1735232539268,7.4041,190.37,190.32,2.6292]
[1735232540478,10.0328,190.37,190.32,2.6292]
[1735232541573,7.4041,190.37,190.34,2.6289]
[1735232541771,4.2,190.37,190.31,13.228068]
[1735232541966,4.2,190.37,190.34,13.228068]
[1735232542364,14.87,190.38,190.34,13.228068]
[1735232542572,14.87,190.38,190.37,13.228068]
[1735232543077,14.87,190.38,190.37,2.6286]
[1735232543670,14.87,190.38,190.35,2.6289]
[1735232543870,14.87,190.38,190.32,28.75605241]
[1735232544173,14.87,190.38,190.35,2.6289]
[1735232544476,14.87,190.38,190.31,13.228068]
[1735232544774,14.87,190.38,190.34,2.629]
[1735232544976,18.01,190.38,190.29,3.14]
[1735232545170,2.6289,190.35,190.27,28.75605241]
[1735232545372,18.01,190.38,190.28,2.6298]
[1735232545572,13.228068,190.36,190.27,28.75605241]
[1735232545978,13.228068,190.36,190.24,13.228068]
[1735232546173,2.6289,190.35,190.27,2.6299]
[1735232546373,2.6289,190.35,190.24,13.228068]
[1735232546673,13.228068,190.36,190.24,13.228068]
[1735232546879,2.6291,190.34,190.29,2.6296]
[1735232547176,3.14,190.33,190.29,2.6296]
[1735232547478,5.7692,190.33,190.29,2.6296]
[1735232548079,14.87,190.38,190.27,13.228068]
[1735232548274,3.14,190.37,190.3,13.228068]
[1735232548479,14.87,190.38,190.37,2.6286]
[1735232551274,14.87,190.38,190.31,13.228068]
[1735232551881,14.87,190.38,190.35,2.6289]
[1735232553278,14.87,190.38,190.34,13.228068]
[1735232553883,13.61,190.38,190.37,2.6286]
[1735232554982,14.87,190.38,190.37,2.6286]
[1735232555181,14.87,190.38,190.36,2.6288]
[1735232556286,14.87,190.38,190.37,2.6286]
[1735232556583,14.87,190.38,190.31,13.228068]
[1735232556883,18.01,190.38,190.28,13.228068]
[1735232557078,1.6768,190.37,190.28,13.228068]
[1735232557375,1.6768,190.37,190.3,2.6295]
[1735232557786,2.6289,190.35,190.3,2.6295]
[1735232558178,5.7688,190.36,190.25,13.228068]
[1735232558378,12.1188,190.36,190.25,13.228068]
[1735232558987,12.1188,190.36,190.31,2.6294]
[1735232559378,9.49,190.36,190.29,2.6296]
[1735232559780,9.49,190.36,190.25,13.228068]
[1735232559980,12.1189,190.36,190.31,2.6293]
[1735232560175,9.49,190.36,190.28,13.228068]
[1735232560377,18.87,190.36,190.28,13.228068]
[1735232560582,18.87,190.36,190.33,2.6291]
[1735232561086,18.87,190.36,190.28,13.228068]
[1735232561382,15.73,190.36,190.34,2.6289]
[1735232561583,15.73,190.36,190.31,13.228068]
[1735232561787,15.73,190.36,190.28,13.228068]
[1735232562289,2.6291,190.34,190.28,13.228068]
[1735232562489,2.6291,190.34,190.3,2.6295]
[1735232563393,2.6289,190.35,190.31,2.6294]
[1735232564788,15.73,190.36,190.34,2.6291]
[1735232564989,15.73,190.36,190.28,13.228068]
[1735232566586,15.73,190.36,190.34,2.629]
[1735232567890,18.15,190.36,190.35,2.6289]
[1735232568094,18.15,190.36,190.28,13.228068]
[1735232568686,18.15,190.36,190.33,2.6291]
[1735232568993,20.7788,190.36,190.28,13.228068]
[1735232569291,20.7788,190.36,190.31,2.6294]
[1735232569493,18.15,190.36,190.28,13.228068]
[1735232569691,20.7788,190.36,190.28,13.228068]
[1735232570093,18.15,190.36,190.28,13.228068]
[1735232570287,2.629,190.35,190.28,13.228068]
[1735232570688,2.629,190.35,190.31,2.6293]
[1735232571592,5.769,190.35,190.32,2.6293]
[1735232573688,3.14,190.35,190.28,13.228068]
[1735232575296,3.14,190.35,190.31,2.6294]
[1735232577001,5.769,190.35,190.31,2.6294]
[1735232577299,8.9306,190.35,190.31,2.6294]
[1735232579195,1.26,190.34,190.31,2.6294]
[1735232581005,1.26,190.34,190.28,13.228068]
[1735232581301,1.26,190.34,190.32,2.6293]
[1735232581709,9.29,190.34,190.32,2.6293]
[1735232582206,9.29,190.34,190.33,2.6292]
[1735232582596,8.77,190.36,190.33,2.6292]
[1735232582797,8.77,190.36,190.35,15.856968]
[1735232584816,8.77,190.36,190.35,2.6289]
[1735232587107,8.77,190.36,190.34,2.629]
[1735232587313,8.77,190.36,190.32,13.228068]
[1735232587810,8.77,190.36,190.35,2.6289]
[1735232592305,8.77,190.36,190.3,7.1890131]
[1735232592815,8.77,190.36,190.35,2.6289]
[1735232595807,8.77,190.36,190.34,2.629]
[1735232596013,11.91,190.36,190.29,28.75605241]
[1735232596411,11.91,190.36,190.29,7.1890131]
[1735232597419,2.629,190.35,190.31,2.6294]
[1735232598620,2.629,190.35,190.32,2.6293]
[1735232598809,2.42,190.34,190.32,2.6293]
[1735232599116,2.42,190.34,190.26,146.1595954]
[1735232599319,5.0492,190.34,190.3,2.6296]
[1735232600521,2.42,190.34,190.26,146.1595954]
[1735232600722,5.0491,190.34,190.26,146.1595954]
[1735232600918,2.42,190.34,190.26,146.1595954]
[1735232601123,5.0491,190.34,190.26,146.1595954]
[1735232601621,5.0491,190.34,190.26,124.59255609]
[1735232601817,2.42,190.34,190.26,124.59255609]
[1735232602023,2.42,190.34,190.32,13.228068]
[1735232602422,9.25,190.35,190.32,13.228068]
[1735232602722,3.14,190.45,190.32,13.228068]
[1735232602918,1.6434,190.46,190.42,13.228068]
[1735232603218,10.63,190.46,190.42,13.228068]
[1735232603721,18.99,190.46,190.42,13.228068]
[1735232604420,18.99,190.46,190.39,13.228068]
[1735232604822,22.13,190.46,190.39,13.228068]
[1735232606421,2.6276,190.45,190.39,2.6284]
[1735232606616,35.358068,190.46,190.36,13.228068]
[1735232606820,4.7897,190.44,190.34,7.1890131]
[1735232607423,4.7897,190.44,190.33,13.228068]
[1735232607623,2.628,190.42,190.37,2.6286]
[1735232608326,3.14,190.41,190.37,2.6286]
[1735232608626,5.7681,190.41,190.37,2.6286]
[1735232609426,3.14,190.41,190.37,2.6286]
[1735232610422,3.14,190.42,190.36,13.228068]
[1735232610621,3.14,190.43,190.36,13.228068]
[1735232611020,3.14,190.43,190.39,2.6283]
[1735232611424,2.6282,190.41,190.36,2.6286]
[1735232612123,2.6283,190.4,190.36,2.6286]
[1735232612329,3.14,190.43,190.35,2.6289]
[1735232613026,2.6286,190.38,190.33,2.6292]
[1735232613329,3.14,190.37,190.28,28.75605241]
[1735232613535,4.2013,190.36,190.31,2.6293]
[1735232613728,1.5725,190.36,190.31,2.6293]
[1735232614035,3.1768,190.36,190.31,2.6293]
[1735232614929,4.7372,190.36,190.31,2.6293]
[1735232615332,2.6294,190.32,190.26,104.17547499]
[1735232615537,3.14,190.32,190.25,7.1890131]
[1735232616131,3.14,190.32,190.24,7.1890131]
[1735232616435,2.6297,190.3,190.26,2.6302]
[1735232617440,2.6295,190.31,190.26,2.6302]
[1735232618541,2.6295,190.31,190.21,13.228068]
[1735232618842,2.6295,190.31,190.27,2.63]
[1735232619142,3.14,190.32,190.21,13.228068]
[1735232619343,2.6296,190.3,190.26,2.6302]
[1735232619643,2.6296,190.3,190.21,13.228068]
[1735232619942,2.6296,190.3,190.25,2.6302]
[1735232621240,2.6298,190.29,190.25,2.6302]
[1735232621542,16.368068,190.32,190.21,13.228068]
[1735232622043,2.6301,190.27,190.23,2.6305]
[1735232622245,16.368068,190.32,190.21,13.228068]
[1735232622943,2.6301,190.27,190.22,2.6306]
[1735232623144,3.16,190.26,190.22,2.6306]
[1735232625043,3.16,190.26,190.15,13.228068]
[1735232625343,17.981368,190.26,190.15,13.228068]
[1735232625552,3.3354,190.25,190.15,13.228068]
[1735232626040,2.6308,190.22,190.15,13.228068]
[1735232626346,3.16,190.21,190.12,13.228068]
[1735232626645,5.791,190.21,190.16,2.6314]
[1735232626845,5.791,190.21,190.12,13.228068]
[1735232627448,12.911,190.21,190.12,13.228068]
[1735232627653,12.911,190.21,190.17,2.6313]
[1735232628947,7.12,190.21,190.15,13.228068]
[1735232629251,7.12,190.21,190.2,2.631]
[1735232629843,13.93,190.21,190.2,2.631]
[1735232632848,13.228068,190.33,190.19,3.16]
[1735232633047,3.16,190.32,190.27,2.6299]
[1735232633356,5.7895,190.32,190.27,2.6299]
[1735232633860,2.6296,190.31,190.25,2.6302]
[1735232634050,8.4496,190.31,190.25,2.6302]
[1735232634255,15.1996,190.31,190.23,13.228068]
[1735232634756,15.73,190.31,190.23,13.228068]
[1735232636562,18.3596,190.31,190.26,2.6301]
[1735232637059,18.3596,190.31,190.27,2.63]
[1735232638856,2.6298,190.29,190.25,2.6302]
[1735232639057,15.73,190.31,190.2,13.228068]
[1735232640153,13.228068,190.3,190.2,13.228068]
[1735232640358,13.228068,190.27,190.13,28.75605241]
[1735232640563,3.16,190.26,190.14,13.228068]
[1735232640955,3.16,190.26,190.13,28.75605241]
[1735232641264,2.6307,190.22,190.16,2.6314]
[1735232641464,3.16,190.26,190.13,13.228068]
[1735232641860,2.6308,190.22,190.17,2.6313]
[1735232642059,3.16,190.26,190.17,2.6313]
[1735232642260,3.16,190.26,190.13,13.228068]
[1735232642460,3.16,190.26,190.19,2.6311]
[1735232642663,3.16,190.26,190.13,13.228068]
[1735232642864,3.2036,190.29,190.16,13.228068]
[1735232643164,3.14,190.28,190.16,13.228068]
[1735232643367,2.6304,190.25,190.16,13.228068]
[1735232644565,2.6304,190.25,190.21,2.6307]
[1735232644960,2.6304,190.25,190.16,13.228068]
[1735232644961,3.14,190.28,190.16,13.228068]
[1735232645160,3.14,190.28,190.19,13.228068]
[1735232645556,2.6303,190.25,190.22,2.6307]
[1735232646161,2.6302,190.26,190.22,2.6307]
[1735232646464,3.14,190.28,190.19,13.228068]
[1735232646865,3.14,190.28,190.21,2.6308]
[1735232647062,3.14,190.28,190.19,13.228068]
[1735232647267,12.09,190.28,190.19,13.228068]
[1735232648369,2.63,190.27,190.24,2.6304]
[1735232649264,12.09,190.28,190.16,23.5570811]
[1735232649767,12.09,190.28,190.22,2.6307]
[1735232649768,2.6303,190.26,190.22,2.6307]
[1735232650773,2.6303,190.25,190.16,16.368068]
[1735232650968,12.09,190.28,190.16,16.368068]
[1735232651167,13.228068,190.27,190.16,13.228068]
[1735232651371,2.6308,190.22,190.18,2.6313]
[1735232653066,3.14,190.23,190.12,28.75605241]
[1735232653274,3.14,190.23,190.11,41.98412041]
[1735232653568,4.7767,190.23,190.11,41.98412041]
[1735232653770,2.6311,190.2,190.16,2.6315]
[1735232653971,2.6311,190.2,190.11,41.98412041]
[1735232654270,2.6311,190.2,190.11,13.228068]
[1735232654867,2.6311,190.2,190.13,2.6319]
[1735232655069,2.6311,190.2,190.11,13.228068]
[1735232655766,2.6311,190.2,190.16,2.6315]
[1735232657967,2.6311,190.2,190.11,13.228068]
[1735232658271,2.6311,190.2,190.17,2.6314]
[1735232659768,3.14,190.21,190.11,13.228068]
[1735232660069,8.95,190.28,190.17,13.228068]
[1735232660368,3.14,190.27,190.26,2.6302]
[1735232660564,19.13,190.28,190.26,2.6302]
[1735232661373,19.13,190.28,190.24,2.6303]
[1735232662376,19.13,190.28,190.2,13.228068]
[1735232662571,19.13,190.28,190.18,7.1890131]
[1735232662875,2.6303,190.25,190.21,2.6308]
[1735232663075,3.14,190.25,190.18,7.1890131]
[1735232663575,3.14,190.25,190.23,2.6306]
[1735232663975,3.14,190.25,190.19,13.228068]
[1735232664171,3.14,190.25,190.24,2.6304]
[1735232664376,19.13,190.28,190.24,2.6304]
[1735232664777,21.7599,190.28,190.24,2.6304]
[1735232665471,2.6301,190.27,190.22,2.6306]
[1735232665671,19.13,190.28,190.22,2.6306]
[1735232666172,2.6303,190.25,190.22,2.6306]
[1735232666477,19.13,190.28,190.2,2.6309]
[1735232667568,2.6303,190.25,190.21,2.6308]
[1735232670672,5.7705,190.24,190.2,2.6309]
[1735232673780,5.7705,190.24,190.16,13.228068]
[1735232673984,5.7705,190.24,190.21,2.6308]
[1735232674782,5.7705,190.24,190.16,13.228068]
[1735232675081,5.7705,190.24,190.2,2.6309]
[1735232675879,5.7705,190.24,190.16,13.228068]
[1735232676079,5.7705,190.24,190.21,2.6309]
[1735232676477,12.2105,190.24,190.21,2.6309]
[1735232676982,12.2105,190.24,190.18,8.49856515]
[1735232677183,12.2105,190.24,190.2,2.631]
[1735232677684,12.2105,190.24,190.2,8.49856515]
[1735232677884,9.58,190.24,190.2,8.49856515]
[1735232678684,9.58,190.24,190.21,2.6308]
[1735232679885,12.2105,190.24,190.18,8.49856515]
[1735232680090,12.2105,190.24,190.2,2.631]
[1735232680386,11.12916515,190.23,190.2,2.631]
[1735232680787,2.6306,190.23,190.2,2.631]
[1735232680985,11.12916515,190.23,190.2,2.631]
[1735232682486,8.49856515,190.21,190.13,7.1890131]
[1735232682683,8.49856515,190.21,190.14,8.49856515]
[1735232683086,2.6311,190.2,190.16,2.6314]
[1735232683283,8.49856515,190.21,190.16,2.6314]
[1735232684487,2.631,190.2,190.17,2.6314]
[1735232685081,8.671,190.21,190.17,2.6314]
[1735232686491,2.631,190.2,190.17,2.6314]
[1735232687789,14.53856515,190.21,190.17,2.6314]
[1735232687991,17.16956515,190.21,190.17,2.6314]
[1735232688290,14.53856515,190.21,190.17,2.6314]
[1735232688490,14.53856515,190.21,190.16,8.49856515]
[1735232688491,8.6709,190.21,190.16,8.49856515]
[1735232688687,8.6709,190.21,190.1,7.1890131]
[1735232688688,6.04,190.21,190.2,2.631]
[1735232689192,6.04,190.21,190.2,11.12956515]
[1735232689493,6.04,190.21,190.2,2.631]
[1735232690587,13.7,190.21,190.16,8.49856515]
[1735232691292,22.19856515,190.21,190.14,15.68757825]
[1735232691687,3.14,190.2,190.14,15.68757825]
[1735232691888,5.7711,190.2,190.16,2.6315]
[1735232692296,3.14,190.2,190.16,8.49856515]
[1735232693590,3.14,190.2,190.17,2.6314]
[1735232693788,3.14,190.2,190.16,8.49856515]
[1735232694491,3.14,190.2,190.19,2.6311]